Cogmind - Beta 16 @@@ ROGUE MODE // 2025.10.26 @ 22:45:38 Player: the Result: Destroyed by H-71 Marshal with Heavy Mass Driver Performance ------------- Evolutions (6) 3000 Regions Visited (12) 2400 Robots Destroyed (138) 690 Value Destroyed (4787) 4787 Prototype IDs (42) 840 Alien Tech Used (0) 0 Bonus (1778) 1778 TOTAL SCORE: 13495 Bonus ------- High Alert Combat Kills 35 Follower Combat Kills 405 Registered with UFD 300 Met Optimus in HQ 500 Met Warlord at Base 500 MAIN.C Attacked Warlord 500 Warlord Defense Kills 364 Friendly Fire -826 Cogmind --------- Core Integrity 0/1150 Matter 107/300 Energy 58/100 System Corruption 7% Temperature Cool (0) Movement Core (50) Location -4/Factory Parts ------- > --- POWER (3) -------- (None) > --- PROPULSION (3) --- (None) > --- UTILITY (11) ----- (None) > --- WEAPON (3) ------- (None) > --- INVENTORY (5) ---- Scrap Suit Advanced Recoil Stabilizer Layered Medium Armor Plating Hypervelocity Coil Gun Peak State ------------ > --- POWER ------------ Cooled Deuterium Engine Fission Core Neutrino Core > --- PROPULSION ------- Compact Wheel Overtuned Huge Scrapsphere > --- UTILITY ---------- Scrap Suit Huge Storage Unit Deep Structural Scanner Long-range Sensor Array Advanced Signal Interpreter Enhanced Scrap Shield Advanced Remote Force Field Advanced Hacking Suite System Mapper Rainbow Chip > --- WEAPON ----------- Advanced Plasma Cannon Heavy Autocannon > --- INVENTORY -------- Particle Reactor Vortex Chain Reactor Scrap Suit Scrap Suit Advanced Heat Sink Improved Cooling System Advanced Recoil Stabilizer Quantum Capacitor Layered Heavy Armor Plating A0-MCA's Component Scanner Mapping Drone Bay Overtuned Beamcaster Vortex Shotgun Vortex Shotgun Vortex Shotgun Advanced Plasma Cannon Advanced Plasma Cannon Overtuned Railgun Long-range Missile Launcher CPS Tube [Rating: 140] Favorites ----------- Power Fission Core Engine Subdweller Power Source Power Core Fission Core Reactor Particle Reactor Propulsion Light Treads Treads Light Treads Leg Makeshift Leg Wheel Overtuned Huge Scrapsphere Flight Unit Cesium-ion Thruster Utility Huge Storage Unit Device Seismic Detector Storage Huge Storage Unit Processor Advanced Signal Interpreter Hackware Advanced Hacking Suite Protection Scrap Shield Weapon Subdweller Beam Cannon Energy Gun Overtuned Beamcaster Energy Cannon Subdweller Beam Cannon Ballistic Gun Assault Rifle Ballistic Cannon Light Cannon Launcher Long-range Missile Launcher Special Weapon Mining Laser Special Melee Weapon Datajack Build | -11 -10 -10 -7 -7 -5 -5 -5 -5 -5 -5 -4 -4 ------- Run | Yrd Mat Sub Rec Scr Fac Was Fac Upp Upp War Pro Fac Slots Evolved 12 | . . . . . 10 . . . . . . 2 Power 1 | . . . . . 1 . . . . . . . Propulsion 1 | . . . . . 1 . . . . . . . Utility 9 | . . . . . 7 . . . . . . 2 Weapon 1 | . . . . . 1 . . . . . . . Parts Attached 122 | 8 12 24 3 11 13 7 8 2 4 9 . 21 Power 20 | 2 2 4 1 1 2 5 1 . . 1 . 1 Engine 10 | 2 1 4 1 1 . . 1 . . . . . Core 8 | . 1 . . . 2 4 . . . 1 . . Reactor 2 | . . . . . . 1 . . . . . 1 Propulsion 22 | 2 3 6 1 4 . . . 1 1 1 . 3 Treads 5 | 2 . 3 . . . . . . . . . . Leg 8 | . . 3 1 2 . . . . . 1 . 1 Wheel 8 | . 3 . . 2 . . . 1 1 . . 1 Hover . | . . . . . . . . . . . . . Flight 1 | . . . . . . . . . . . . 1 Utility 47 | 2 5 5 . 1 10 1 6 1 1 5 . 10 Device 19 | 1 1 1 . . 4 1 4 . . 3 . 4 Storage 6 | 1 3 2 . . . . . . . . . . Processor 5 | . . . . . 2 . 1 . 1 1 . . Hackware 2 | . . . . . 1 . . . . . . 1 Protection 15 | . 1 2 . 1 3 . 1 1 . 1 . 5 Artifact . | . . . . . . . . . . . . . Weapon 33 | 2 2 9 1 5 1 1 1 . 2 2 . 7 Energy Gun 9 | . . 3 . 2 1 . . . . 1 . 2 Energy Cannon 8 | . . 3 . 1 . . . . 1 . . 3 Ballistic Gun 5 | 2 1 . 1 . . . . . . . . 1 Ballistic Cannon 6 | . . 2 . 1 . 1 . . 1 1 . . Launcher 2 | . . 1 . . . . 1 . . . . . Special Weapon 2 | . 1 . . . . . . . . . . 1 Impact Weapon . | . . . . . . . . . . . . . Slashing Weapon . | . . . . . . . . . . . . . Piercing Weapon . | . . . . . . . . . . . . . Special Melee Weapon 1 | . . . . 1 . . . . . . . . Unidentified Prototypes 11 | . . . . . . . 1 1 . 7 . 2 Parts Lost 31 | . 2 3 3 . 2 1 . 1 . . . 19 Power 5 | . . . 1 . . . . . . . . 4 Propulsion 9 | . . 2 1 . . 1 . 1 . . . 4 Utility 10 | . 1 . . . 2 . . . . . . 7 Weapon 7 | . 1 1 1 . . . . . . . . 4 Highest Loss Streak 14 | . 2 2 3 . 1 1 . 1 . . . 14 To Critical Strikes . | . . . . . . . . . . . . . Average Backups 14 | 2 14 6 19 19 20 22 22 21 21 20 21 18 Power 1 | . 1 . . . 2 4 3 3 3 2 2 1 Propulsion 2 | . 4 1 5 4 2 2 2 . . . . . Utility 5 | 1 4 1 5 6 9 11 11 10 11 10 10 8 Weapon 4 | . 3 3 7 6 2 2 2 5 5 6 8 8 Tool/Special . | . . . . . . . . . . . . . Unused Backups 41 | 2 1 13 . 5 3 . 2 1 . 3 . 11 Power 3 | . . 2 . . . . . . . 1 . . Propulsion 8 | 1 . 2 . 1 3 . . 1 . . . . Utility 14 | 1 1 2 . . . . 2 . . 1 . 7 Weapon 15 | . . 7 . 4 . . . . . . . 4 Tool/Special 1 | . . . . . . . . . . 1 . . Average Slot Usage (%) 77 | . 90 84 75 67 69 67 73 75 76 72 70 71 Engine 8 | . 8 13 7 7 . . 2 5 5 4 3 3 Core 2 | . 5 . . . 9 9 11 11 11 10 9 6 Treads 8 | . 10 20 . . . . . . . . . . Leg 8 | . . 6 27 19 . . . . . . . . Wheel 4 | . 17 . . 4 10 6 5 9 10 9 9 6 Device 10 | . 5 3 14 13 16 21 20 16 16 14 14 15 Storage 7 | . 14 3 14 13 5 5 5 5 5 4 4 3 Processor 1 | . . . . . 3 5 5 5 5 6 9 7 Hackware 1 | . . . . . 3 5 5 5 5 4 4 7 Protection 5 | . . 10 . . 8 1 6 4 5 4 4 4 Energy Gun 3 | . . 3 5 1 3 3 4 5 4 4 3 1 Energy Cannon 8 | . . 17 5 4 5 5 5 5 5 4 . 8 Ballistic Gun 2 | . 26 1 . . . . . . . . . . Ballistic Cannon 1 | . . 3 . . . 1 . . . . 4 1 Peak Build Rating 140 | 7 10 21 24 41 91 96 102 105 106 127 123 140 Average Rating 40 | 5 8 14 18 25 81 88 97 104 104 112 122 126 On Entrance 63 | . 7 8 21 16 35 90 95 102 104 105 123 123 Avg Prop Armor Cover (%) 9 | 22 11 . . 5 . . . . . . . . Naked Turns 12 | . . . . . . . . . . . . 12 Heaviest Build 198 | 13 88 97 103 99 140 136 152 151 153 177 179 198 Greatest Support 43 | 40 40 40 40 43 30 30 20 30 36 36 36 36 Greatest Overweight (x) 44 | 2 8 2 2 19 4 6 7 7 7 7 4 44 Average Overweight (x) 2 | . 1 . 2 3 3 4 6 4 4 3 4 5 Largest Inventory Capacity 25 | 8 25 25 25 25 25 25 25 25 25 25 25 25 Average Capacity 18 | 6 18 9 25 24 25 25 25 25 25 25 25 24 Most Carried 25 | 5 19 23 25 25 25 25 25 25 25 25 25 25 Average Carried 16 | 2 14 7 22 22 23 24 24 24 25 24 25 22 Final Capacity 25 | 8 20 25 25 25 25 25 25 25 25 25 25 5 Final Carried 25 | 5 16 22 23 24 25 25 25 25 25 25 25 5 Scrap Suit Usage (%) 1 | . . . . . 11 . 4 . 3 . . 1 Parts Cannibalized 2 | . . . . . 1 . 1 . . . . . Class Distribution -------------------- 49% | Mutant 19% | Subdweller-Mutant 15% | Skirmisher 6% | Scavenger-Mutant 4% | Commander-Skirmisher Dominant Class ---------------- Mutant | -10/Materials Subdweller-Mutant | -10/Subcaves Mutant | -7/Recycling Mutant | -7/Scraptown Skirmisher | -5/Factory Skirmisher | -5/Waste Skirmisher | -5/Factory Skirmisher | -5/Upper Caves Skirmisher | -5/Upper Caves Commander-Skirmisher | -5/Warlord Skirmisher | -4/Proximity Caves Hacker-Skirmisher | -4/Factory Resources | -11 -10 -10 -7 -7 -5 -5 -5 -5 -5 -5 -4 -4 ----------- Run | Yrd Mat Sub Rec Scr Fac Was Fac Upp Upp War Pro Fac Matter Collected 3737 | 352 702 761 8 126 459 155 218 137 178 215 61 365 Remotely . | . . . . . . . . . . . . . Salvage Created 5281 | 211 787 787 66 . 505 489 315 131 98 153 50 1689 Parts 248 | 12 58 54 4 . 18 9 16 2 6 7 3 59 Haulers Intercepted 2 | . 2 . . . . . . . . . . . Recyclers Shooed 9 | . 3 . . . 1 . . . . . . 5 Parts Field Recycled . | . . . . . . . . . . . . . Retrieved Matter . | . . . . . . . . . . . . . Parts Self-Destructed 20 | . . 16 . . . . . . 3 . 1 . Prevented . | . . . . . . . . . . . . . Parts Restored . | . . . . . . . . . . . . . Kills | -11 -10 -10 -7 -7 -5 -5 -5 -5 -5 -5 -4 -4 ------- Run | Yrd Mat Sub Rec Scr Fac Was Fac Upp Upp War Pro Fac Combat Hostiles Destroyed 92 | . 12 21 1 . 6 1 7 . 5 4 4 31 Melee 1 | . . . . . . . . . . 1 . . Guns 26 | . 12 2 1 . 1 . 1 . 1 . . 8 Cannons 35 | . . 16 . . 4 . 3 . . . . 12 AOE 24 | . . 3 . . . . 3 . 4 3 4 7 Classes Destroyed 23 | 2 7 4 1 . 2 2 . . 1 1 . 3 Worker 7 | . 5 . . . . . . . . . . 2 Builder 12 | . 3 . 1 . . . 2 . . . . 6 Tunneler 7 | 5 . . . . 1 . . . . . . 1 Hauler 2 | . 2 . . . . . . . . . . . Recycler 6 | 1 2 . . . 1 . . . . . . 2 Operator 1 | . 1 . . . . . . . . . . . Turret 2 | . . 2 . . . . . . . . . . Watcher 2 | . 2 . . . . . . . . . . . Swarmer 28 | . 6 6 . . . . 3 . 5 . 4 4 Saboteur 1 | . . . . . . . . . . 1 . . Grunt 26 | . 6 . . . 1 . 3 . . 3 . 13 Brawler 1 | . . . . . . . . . 1 . . . Duelist 1 | . . . . . . . . . . . . 1 Sentry 4 | . . . 1 . 2 . . . . . . 1 Specialist 3 | . . . . . . . . . . . . 3 Hunter 5 | . . . . . 1 . . . . . . 4 Programmer 6 | . . . . . 2 . 1 . . . . 3 Compactor 1 | . . . . . . 1 . . . . . . Executioner 2 | . . . . . . . . . . . . 2 Cobbler 1 | . . 1 . . . . . . . . . . Subdweller 15 | . . 15 . . . . . . . . . . Zionite 2 | . . 2 . . . . . . . . . . Decomposer 2 | . . . . . . . . 2 . . . . Thug 2 | . . . . . . 1 1 . . . . . Martyr 2 | . . . . . . 2 . . . . . . Best Kill Streak 19 | 5 4 4 2 . 3 1 8 . 5 4 4 19 Combat Bots Only 11 | . 3 3 1 . 3 1 6 . 5 4 4 11 Max Kills in Single Turn 4 | 1 2 2 1 . 1 1 4 1 2 2 3 4 Gunslinging 1 | . 1 . . . . . . . . . . 1 Exploded 3 | . . 2 . . . . 2 . 2 2 3 2 Melee 1 | . . . . . . . . . . 1 . . Uniques/NPCs Destroyed . | . . . . . . . . . . . . . Combat | -11 -10 -10 -7 -7 -5 -5 -5 -5 -5 -5 -4 -4 -------- Run | Yrd Mat Sub Rec Scr Fac Was Fac Upp Upp War Pro Fac Hostile Shots Fired 772 | . 67 58 72 . 28 . 28 1 5 3 1 509 Missed 198 | . 22 24 16 . 7 . 6 1 2 1 1 118 Hits 574 | . 45 34 56 . 21 . 22 . 3 2 . 391 Melee 2 | . . . . . . . . . . . . 2 Projectile 572 | . 45 34 56 . 21 . 22 . 3 2 . 389 AOE 3 | . . 3 . . . . . . . . . . Critical Strikes 15 | . . 1 . . . . 1 . . . . 13 Part Disruptions 2 | . . . . . . . . . . . . 2 Damage Taken 9123 | . 488 962 433 . 479 132 402 68 58 25 . 6076 Core 1517 | . 68 39 87 . 132 37 . . . . . 1154 Absorbed by Shields 665 | . . . . . . . . . . 23 . 642 Regen/Repaired (Parts) 189 | . 87 . . . 7 85 10 . . . . . Core Remaining (%) 68 | 100 . . . 22 . . . . . . 83 . Volleys Fired 549 | 12 89 206 9 . 54 13 33 18 6 11 7 91 Largest 3 | 2 2 2 2 . 2 1 2 2 2 2 1 3 Hottest 294 | 40 100 160 110 . 140 40 220 140 140 140 100 294 Shots Fired 811 | 24 171 256 17 . 66 13 51 23 9 15 7 159 Gun 399 | 24 164 119 9 . 12 . 16 5 3 4 4 39 Cannon 389 | . . 134 8 . 54 13 32 18 3 9 . 118 Launcher 16 | . . 3 . . . . 3 . 3 2 3 2 Special 7 | . 7 . . . . . . . . . . . Kinetic 241 | 24 164 33 9 . . . . . . . . 11 Thermal 526 | . 7 223 8 . 66 13 48 23 6 13 4 115 Explosive 13 | . . . . . . . 3 . 3 2 3 2 Electromagnetic . | . . . . . . . . . . . . . Entropic 31 | . . . . . . . . . . . . 31 Robot Hit Streak 20 | 11 13 20 9 . 12 6 7 4 1 3 . 18 Robot Miss Streak 5 | 1 5 3 4 . 4 1 4 2 1 4 . 3 Penetration Max 1 | . . . . . . . . . . . . 1 Secondary Targets 6 | . 4 . . . . . . . . . . 2 Max Gunslinging Chain 1 | . 1 . . . . . . . . . . 1 Shots Hit Robots 376 | 18 102 76 12 2 32 11 17 4 2 4 . 96 Core Hits 221 | 8 39 36 4 . 9 5 11 3 8 10 5 83 Critical Kills 7 | . 1 . . . 2 2 . . . . . 2 Critical Parts Destroyed 2 | . . . . . . . . . . . . 2 Critical Strikes 12 | . 1 . . . 3 2 2 . . . . 4 Burn 3 | . . . . . 1 . 2 . . . . . Meltdown 6 | . . . . . 2 2 . . . . . 2 Destroy 2 | . 1 . . . . . . . . . . 1 Detonate 1 | . . . . . . . . . . . . 1 Melee Attacks 2 | . . . . 2 . . . . . . . . Impact . | . . . . . . . . . . . . . Slashing . | . . . . . . . . . . . . . Piercing . | . . . . . . . . . . . . . Sneak Attacks 2 | . . . . 2 . . . . . . . . Combat Hostiles . | . . . . . . . . . . . . . Follow-up Attacks . | . . . . . . . . . . . . . Damage Inflicted 15937 | 226 1292 1991 357 . 1509 545 1300 208 470 933 355 6751 Guns 4619 | 225 1268 290 163 . 244 . 244 56 27 89 . 2013 Cannons 6999 | . . 1396 187 . 1265 545 571 152 44 148 . 2691 Explosions 4287 | . . 305 . . . . 485 . 399 696 355 2047 Melee . | . . . . . . . . . . . . . Ramming 8 | 1 . . 7 . . . . . . . . . Kinetic 2760 | 225 1268 556 163 . . . . . . . . 548 Thermal 7636 | . 24 1435 187 . 1509 545 815 208 71 237 . 2605 Explosive 3712 | . . . . . . . 485 . 399 696 355 1777 Electromagnetic . | . . . . . . . . . . . . . Impact . | . . . . . . . . . . . . . Slashing . | . . . . . . . . . . . . . Piercing . | . . . . . . . . . . . . . Entropic 1821 | . . . . . . . . . . . . 1821 Highest Corruption 7 | . . 2 2 . 1 1 2 2 2 2 . 7 Average Corruption 1 | . . 2 2 . 1 1 1 2 2 2 . 4 Corruption Purged . | . . . . . . . . . . . . . Corruption Blocked . | . . . . . . . . . . . . . Effects 128 | . . 36 31 . 2 6 11 15 17 . . 10 Message Errors 28 | . . 14 6 . . . 1 2 3 . . 2 Matter Fused 39 | . . 9 9 . 1 4 4 3 8 . . 1 Heat Flow Errors 20 | . . 4 7 . . 1 3 2 2 . . 1 Energy Discharges 12 | . . 1 3 . . 1 1 2 . . . 4 Data Loss (minor) 11 | . . 1 3 . 1 . . 3 2 . . 1 Data Loss (major) 9 | . . 4 2 . . . . 1 1 . . 1 Misfires 3 | . . . . . . . 1 1 1 . . . Alerts 5 | . . 2 1 . . . 1 1 . . . . Weapon Failures 1 | . . 1 . . . . . . . . . . Overload Shots 8 | . . . . . . . 7 . . 1 . . Effects 2 | . . . . . . . 2 . . . . . Heat Surge 1 | . . . . . . . 1 . . . . . Short Circuit 1 | . . . . . . . 1 . . . . . Overflow Damage 382 | . . 10 . . 60 . 69 51 17 10 30 135 Projectiles 230 | . . . . . 60 . 22 51 . . . 97 Explosions 152 | . . 10 . . . . 47 . 17 10 30 38 Melee . | . . . . . . . . . . . . . Knockbacks 2 | . . 2 . . . . . . . . . . Impact . | . . . . . . . . . . . . . Kinetic 2 | . . 2 . . . . . . . . . . Secondary . | . . . . . . . . . . . . . Self-Inflicted Damage 140 | . . . . . . . . . 8 . . 132 Shots 4 | . . . . . . . . . 1 . . 3 Rammed 1 | 1 . . . . . . . . . . . . Targets Rammed 4 | 1 . . 3 . . . . . . . . . Kicked 3 | . . . 3 . . . . . . . . . Crushed . | . . . . . . . . . . . . . Highest Temperature 466 | . 60 231 466 . 198 182 455 196 273 175 232 364 Average Temperature 94 | . 18 47 167 . 53 96 157 67 91 65 132 101 Received Heat Transfer 1491 | . 207 144 132 . 72 . 135 . . 8 . 793 Effects 7 | . . . 2 . . . 3 . . . . 2 Shutdowns 2 | . . . . . . . 1 . . . . 1 Energy Bleed 2 | . . . . . . . 1 . . . . 1 Interference 2 | . . . 1 . . . 1 . . . . . Damage (minor) 1 | . . . 1 . . . . . . . . . Siege Activations . | . . . . . . . . . . . . . Martial Activations . | . . . . . . . . . . . . . Shielding Activations . | . . . . . . . . . . . . . Robots Disrupted . | . . . . . . . . . . . . . Combat Hostiles . | . . . . . . . . . . . . . Robots Corrupted . | . . . . . . . . . . . . . Combat Hostiles . | . . . . . . . . . . . . . Parts Fried . | . . . . . . . . . . . . . Impact Corruptions . | . . . . . . . . . . . . . Robots Melted 8 | . . . . . 2 2 . . . . . 4 Combat Hostiles 6 | . . . . . 1 1 . . . . . 4 Parts Melted 31 | . . 4 . . 6 1 3 . . 1 . 16 Heat Transferred 7200 | . 50 1991 259 . 500 . 600 100 50 100 . 3550 Parts Sabotaged . | . . . . . . . . . . . . . Parts Stolen . | . . . . . . . . . . . . . Parts Stripped . | . . . . . . . . . . . . . Power Chain Reactions . | . . . . . . . . . . . . . Alert | -11 -10 -10 -7 -7 -5 -5 -5 -5 -5 -5 -4 -4 ------- Run | Yrd Mat Sub Rec Scr Fac Was Fac Upp Upp War Pro Fac Maximum Alert Level 2 | . . . . . . . 2 . . . . 2 Low Security (%) 94 | 100 100 . 100 . 100 100 69 . . . . 79 Level 1 3 | . . . . . . . 15 . . . . 15 Level 2 1 | . . . . . . . 14 . . . . 5 Level 3 . | . . . . . . . . . . . . . Level 4 . | . . . . . . . . . . . . . Level 5 . | . . . . . . . . . . . . . High Security . | . . . . . . . . . . . . . Max Security . | . . . . . . . . . . . . . Peak Influence 501 | 10 123 . 84 . 68 36 501 . . . . 499 Initial 84 | . 3 . 84 . . 9 . . . . . 37 Average 43 | 1 35 . 5 . 17 3 168 . . . . 109 Influence Increases 3434 | 30 395 215 52 . 291 78 855 7 152 148 108 1103 Destroy 0b10 Robot/C 1760 | . 240 160 20 . 120 . 320 . 100 100 80 620 Destroy 0b10 Robot/NC 205 | 30 75 . 5 . 10 . 20 5 . 5 . 55 Destroy Leader 268 | . 58 10 . . 40 . 40 . 10 . 10 100 Allied During Kill 225 | . . . . . . . 120 2 42 43 18 . Successful Hack 77 | . 15 . 26 . 18 . 12 . . . . 6 Disable Machine 255 | . . . . . 45 . 135 . . . . 75 Anti-Garrison Action 150 | . . . . . . . 150 . . . . . Destroy Structure 434 | . 7 . 1 . 58 78 58 . . . . 232 Lose Combat Pursuer 60 | . . 45 . . . . . . . . . 15 Influence Decreases 2977 | 25 400 40 227 . 264 105 392 470 152 103 93 706 Entered New Map 351 | . 2 . 91 . . 18 . 172 . . 45 23 Time Decay 1950 | 25 378 20 131 . 244 77 212 291 152 53 48 319 Lost Part 262 | . 20 20 5 . 10 10 . 7 . . . 190 Lost Ally 264 | . . . . . 10 . 180 . . 50 . 24 Purge Threat 150 | . . . . . . . . . . . . 150 Squads Dispatched 27 | . 3 . . . 5 . 11 . . . . 8 Investigation 12 | . 2 . . . 4 . 3 . . . . 3 Extermination 4 | . . . . . 1 . 1 . . . . 2 Reinforcement 5 | . 1 . . . . . 1 . . . . 3 Assault 4 | . . . . . . . 4 . . . . . Garrison 2 | . . . . . . . 2 . . . . . Intercept . | . . . . . . . . . . . . . Searches Triggered . | . . . . . . . . . . . . . Construction Impeded 2 | . . . . . . . 1 . . . . 1 Haulers Reinforced 1 | . . . . . . . . . . . . 1 Active Scanning Responses . | . . . . . . . . . . . . . Cargo Convoy Interrupts 1 | . . . . . . . . . . . . 1 Stealth | -11 -10 -10 -7 -7 -5 -5 -5 -5 -5 -5 -4 -4 --------- Run | Yrd Mat Sub Rec Scr Fac Was Fac Upp Upp War Pro Fac Distress Signals 8 | . 3 . . . . . . . . 4 . 1 Communications Jammed . | . . . . . . . . . . . . . Distress Signals . | . . . . . . . . . . . . . Times Spotted 141 | . 24 24 1 . 7 4 13 1 3 22 . 42 Peak Tracking Total 14 | . 6 3 1 . 2 4 5 1 3 13 1 14 Tactical Retreats 2 | . . 1 . . . . . . . . . 1 Traps | -11 -10 -10 -7 -7 -5 -5 -5 -5 -5 -5 -4 -4 ------- Run | Yrd Mat Sub Rec Scr Fac Was Fac Upp Upp War Pro Fac Traps Triggered 5 | . 2 . . . 1 . 1 1 . . . . Indirectly . | . . . . . . . . . . . . . Trap Hack Attempts . | . . . . . . . . . . . . . Triggered . | . . . . . . . . . . . . . Disarmed . | . . . . . . . . . . . . . Reprogrammed . | . . . . . . . . . . . . . Reused 1 | . . . . . . 1 . . . . . . Traps Extracted . | . . . . . . . . . . . . . Installed 3 | . . 2 . . . 1 . . . . . . Triggered . | . . . . . . . . . . . . . Most Traps Carried 1 | . . . . 1 1 1 . . . . . . Machines | -11 -10 -10 -7 -7 -5 -5 -5 -5 -5 -5 -4 -4 ---------- Run | Yrd Mat Sub Rec Scr Fac Was Fac Upp Upp War Pro Fac Machines Disabled 25 | . . 5 . . 3 . 10 1 . 1 . 5 Max in Single Turn 4 | . . 3 . . 1 . 4 1 . 1 . 2 Garrison Access 3 | . . . . . 1 . 2 . . . . . Machines Repaired . | . . . . . . . . . . . . . Machines Dismantled . | . . . . . . . . . . . . . Machines Sabotaged . | . . . . . . . . . . . . . Overloaded Fab Kills . | . . . . . . . . . . . . . Hacking | -11 -10 -10 -7 -7 -5 -5 -5 -5 -5 -5 -4 -4 --------- Run | Yrd Mat Sub Rec Scr Fac Was Fac Upp Upp War Pro Fac Machines Accessed 48 | . 8 2 8 3 11 . 8 . 1 1 . 6 Terminals 23 | . 6 . 5 . 6 . 3 . . . . 3 Fabricators 1 | . . . . . . . 1 . . . . . Repair Stations 1 | . 1 . . . . . . . . . . . Recycling Units 13 | . 1 . 3 . 4 . 2 . . . . 3 Scanalyzers 1 | . . . . . . . 1 . . . . . Garrison Access 2 | . . . . . 1 . 1 . . . . . Total Hacks 124 | . 21 6 14 20 33 . 15 . 1 1 . 13 Successful 75 | . 9 6 4 20 17 . 7 . 1 1 . 10 Failed 49 | . 12 . 10 . 16 . 8 . . . . 3 Catastrophic 9 | . 2 . 3 . 1 . 3 . . . . . Database Lockouts . | . . . . . . . . . . . . . Manual 58 | . 12 . 4 . 23 . 6 . . . . 13 Terminals 64 | . 14 . 9 . 25 . 6 . . . . 10 Fabricators 2 | . . . . . . . 2 . . . . . Repair Stations 5 | . 5 . . . . . . . . . . . Recycling Units 20 | . 2 . 5 . 7 . 3 . . . . 3 Scanalyzers 3 | . . . . . . . 3 . . . . . Garrison Access 2 | . . . . . 1 . 1 . . . . . Terminal Hacks 43 | . 3 6 1 20 6 . . . 1 1 . 5 Record 24 | . . 5 . 19 . . . . . . . . Prototype ID Bank 5 | . 2 . 1 . 2 . . . . . . . Open Door 2 | . . . . . . . . . 1 1 . . Branch Access Points 1 | . . . . . . . . . . . . 1 Terminal Index 2 | . . . . . 1 . . . . . . 1 Recycling Unit Index 1 | . . . . . 1 . . . . . . . Alert Level 2 | . . . . . 1 . . . . . . 1 Unreport Threat 1 | . . . . . . . . . . . . 1 Locate Traps 3 | . 1 . . . 1 . . . . . . 1 Proto ID Catalog 2 | . . 1 . 1 . . . . . . . . Fabricator Hacks . | . . . . . . . . . . . . . Repair Station Hacks 3 | . 3 . . . . . . . . . . . Scan Component 2 | . 2 . . . . . . . . . . . Repair 1 | . 1 . . . . . . . . . . . Recycling Unit Hacks 3 | . 1 . 2 . . . . . . . . . Retrieve Components 3 | . 1 . 2 . . . . . . . . . Scanalyzer 3 | . . . . . . . 3 . . . . . Retrieve Study 3 | . . . . . . . 3 . . . . . Garrison Access Hacks 2 | . . . . . 1 . 1 . . . . . Seal Access 2 | . . . . . 1 . 1 . . . . . Unauthorized Hacks 21 | . 2 . 1 . 10 . 3 . . . . 5 Terminals 12 | . 2 . 1 . 6 . 1 . . . . 2 Assimilate 3 | . . . . . 2 . . . . . . 1 Botnet 8 | . 2 . 1 . 3 . 1 . . . . 1 Operators 1 | . . . . . 1 . . . . . . . Fabricators . | . . . . . . . . . . . . . Repair Stations . | . . . . . . . . . . . . . Recycling Units 9 | . . . . . 4 . 2 . . . . 3 Fedlink 9 | . . . . . 4 . 2 . . . . 3 Scanalyzers . | . . . . . . . . . . . . . Garrison Access . | . . . . . . . . . . . . . Data Cores Recovered 1 | . . . . . . . 1 . . . . . Used 1 | . . . . . . . 1 . . . . . Hacking Detections 32 | . 8 . 7 . 7 . 6 . . . . 4 Full Trace Events 1 | . . . . . . . 1 . . . . . Feedback Events . | . . . . . . . . . . . . . Feedback Blocked . | . . . . . . . . . . . . . Robot Schematics Acquired . | . . . . . . . . . . . . . Robots Built . | . . . . . . . . . . . . . Authchips . | . . . . . . . . . . . . . Time . | . . . . . . . . . . . . . Total Robot Build Rating . | . . . . . . . . . . . . . Part Schematics Acquired . | . . . . . . . . . . . . . Parts Built . | . . . . . . . . . . . . . Authchips . | . . . . . . . . . . . . . Time . | . . . . . . . . . . . . . Total Part Build Rating . | . . . . . . . . . . . . . Part Studies Acquired 2 | . . . . . . . 2 . . . . . Parts Repaired 1 | . 1 . . . . . . . . . . . Time 13 | . 13 . . . . . . . . . . . Parts Recycled . | . . . . . . . . . . . . . Recycled Matter . | . . . . . . . . . . . . . Retrieved Matter . | . . . . . . . . . . . . . Retrieved Components 8 | . 1 . 7 . . . . . . . . . Parts Scanalyzed . | . . . . . . . . . . . . . Part Schematics Acquired . | . . . . . . . . . . . . . Parts Damaged . | . . . . . . . . . . . . . Bothacking | -11 -10 -10 -7 -7 -5 -5 -5 -5 -5 -5 -4 -4 ------------ Run | Yrd Mat Sub Rec Scr Fac Was Fac Upp Upp War Pro Fac Used RIF Installer . | . . . . . . . . . . . . . Robots Hacked 1 | . . . . 1 . . . . . . . . Non-combat 1 | . . . . 1 . . . . . . . . Combat . | . . . . . . . . . . . . . Robot Hacks Applied 2 | . . . . 2 . . . . . . . . parse_system 2 | . . . . 2 . . . . . . . . Relay Couplers Released 2 | . . . . . . . 2 . . . . . Machine Destruction 2 | . . . . . . . 2 . . . . . Fabnet Peak Effective % . | . . . . . . . . . . . . . Robots Rewired 9 | . . . . . . . . 4 . 5 . . Allies Hacked . | . . . . . . . . . . . . . Hacks Repelled . | . . . . . . . . . . . . . Allies | -11 -10 -10 -7 -7 -5 -5 -5 -5 -5 -5 -4 -4 -------- Run | Yrd Mat Sub Rec Scr Fac Was Fac Upp Upp War Pro Fac Total Allies 30 | . . . . . 1 19 . 4 . 5 . 1 Largest Group 18 | . . . . . 1 18 14 4 4 7 3 3 Highest-Rated Group 656 | . . . . . 10 656 483 120 120 334 124 124 Highest-Rated Ally 64 | . . . . . 10 50 46 30 30 64 64 64 Total Orders 28 | . . . . . . . 1 . . 22 4 1 STAY 11 | . . . . . . . . . . 7 3 1 FOLLOW 6 | . . . . . . . . . . 5 1 . AID 10 | . . . . . . . . . . 10 . . RETURN 1 | . . . . . . . 1 . . . . . Ally Attacks 194 | . . . . . . 101 71 . 3 14 . 5 Total Damage 5780 | . . . . . . 3507 1558 . . 571 . 144 Kills 19 | . . . . . . 6 11 . . 2 . . Allies Corrupted . | . . . . . . . . . . . . . Allies Melted 3 | . . 1 . . . 1 . . . 1 . . Intel | -11 -10 -10 -7 -7 -5 -5 -5 -5 -5 -5 -4 -4 ------- Run | Yrd Mat Sub Rec Scr Fac Was Fac Upp Upp War Pro Fac Active Infowar (turns) 14129 | 86 710 2485 1561 2370 811 741 559 1160 882 1388 631 745 Sensors 6547 | . . . . . 482 736 530 1160 881 1388 631 739 Terrain 591 | . . 591 . . . . . . . . . . Structural 6370 | . . . . . 735 741 498 1012 882 1229 631 642 Seismic 6972 | 86 710 1894 1561 2370 351 . . . . . . . Robot Analysis Total . | . . . . . . . . . . . . . Derelict Logs Recovered 10 | . . 3 . 3 . . . 1 1 . 2 . Drone Launches 3 | . . . . . . . 3 . . . . . Drone Recoveries 3 | . . . . . . . 3 . . . . . Exploration | -11 -10 -10 -7 -7 -5 -5 -5 -5 -5 -5 -4 -4 ------------- Run | Yrd Mat Sub Rec Scr Fac Was Fac Upp Upp War Pro Fac Turns Passed 28006 | 213 1936 10141 1852 6564 847 741 624 1160 882 1389 631 1026 Spaces Moved 13953 | 114 1174 4851 636 2609 515 451 360 829 629 910 438 437 Core 102 | 65 . . . 11 . . . . . . . 26 Treads 4032 | 49 186 3797 . . . . . . . . . . Legs 3310 | . . 962 636 1712 . . . . . . . . Wheels 6503 | . 988 92 . 886 515 451 360 829 629 910 438 405 Hover . | . . . . . . . . . . . . . Flight 6 | . . . . . . . . . . . . 6 Fastest Speed 35 | 50 95 80 280 90 111 111 130 123 133 121 133 35 Average Speed 176 | 131 128 181 280 244 121 123 132 127 133 132 133 151 Slowest Speed 2250 | 160 320 280 280 1000 123 130 140 140 140 140 133 2250 Overloaded Moves . | . . . . . . . . . . . . . Propulsion Burnouts . | . . . . . . . . . . . . . Robots Hopped . | . . . . . . . . . . . . . Potential Cave-ins 6 | . . 6 . . . . . . . . . . Cave-ins Triggered 1 | . . 1 . . . . . . . . . . Exploration Rate (%) 63 | 4 97 97 87 89 17 91 12 88 65 88 69 15 Regions Visited 12 Branch Regions 7 Pre-discovered Areas 7 | . . 2 . 3 1 . . . 1 . . . Known Exits Taken 7 | . . 1 . 1 . . 1 1 1 1 1 . Unknown Exits Taken 3 | 1 1 . 1 . . . . . . . . . Scrap Searched 18 | . . 10 . 3 . . . 1 2 . 2 . Spaces Dug 120 | . 3 19 . . 18 . 13 6 3 1 40 17 Terrain Destroyed 429 | . 6 95 1 . 28 1 35 16 43 17 59 128 Melee . | . . . . . . . . . . . . . Projectile 190 | . 6 49 1 . 28 1 22 16 3 3 4 57 AOE 239 | . . 46 . . . . 13 . 40 14 55 71 Terrain Rammed . | . . . . . . . . . . . . . Walls Destroyed . | . . . . . . . . . . . . . Machines Disabled . | . . . . . . . . . . . . . Actions | -11 -10 -10 -7 -7 -5 -5 -5 -5 -5 -5 -4 -4 --------- Run | Yrd Mat Sub Rec Scr Fac Was Fac Upp Upp War Pro Fac Total 16600 | 151 1411 5967 688 2809 685 630 468 916 658 1079 479 659 Wait 1456 | 6 103 736 29 128 65 129 41 27 15 84 26 67 Move 13941 | 113 1173 4849 635 2608 515 450 359 828 628 909 437 437 Hop . | . . . . . . . . . . . . . Pick Up 150 | 8 16 53 3 19 17 8 6 2 . 8 . 10 Fast Attach 59 | 6 1 10 . 7 3 2 3 4 1 11 3 8 Attach 62 | 1 3 11 4 5 10 7 2 . . 1 . 18 Detach 16 | . 1 1 2 5 . 5 1 . . . . 1 Swap 130 | 1 19 29 1 11 13 4 14 2 8 6 3 19 Drop 155 | 3 6 57 2 24 8 11 9 6 . 18 3 8 Fire 549 | 12 89 206 9 . 54 13 33 18 6 11 7 91 Melee 2 | . . . . 2 . . . . . . . . Ram . | . . . . . . . . . . . . . Kick 3 | . . . 3 . . . . . . . . . Crush 1 | 1 . . . . . . . . . . . . Escape Stasis 1 | . . 1 . . . . . . . . . . Rewire 60 | . . . . . . . . 29 . 31 . . Trap 3 | . . 2 . . . 1 . . . . . . Miscellaneous 12 | . . 12 . . . . . . . . . . Route ------- -11/Scrapyard -10/Materials (discovered 5 exits: [*Mat x3] / [*Min] / *Sub) -10/Subcaves (discovered 3 exits: [*Mat x2] / *Rec) -7/Recycling -7/Scraptown (discovered 2 exits: *Fac x2) -5/Factory (discovered 5 exits: *Fac x2 / Upp x2 / Ext) -5/Waste -5/Factory (discovered 3 exits: *Fac / *Upp x2) -5/Upper Caves -5/Upper Caves -5/Warlord -4/Proximity Caves -4/Factory (discovered 2 exits: Upp x2) History --------- Turn | Location | Event 9 | -11/Scrapyard | Discovered new exit (range 15) 214 | -11/Scrapyard | Entered Materials 215 | -10/Materials | Met a group of wandering Federalists 280 | -10/Materials | Discovered new exit (range 15) 310 | -10/Materials | Build established: Mutant 352 | -10/Materials | Discovered new exit (range 16) 369 | -10/Materials | Discovered new exit (range 3) 597 | -10/Materials | Discovered new exit (range 14) 1247 | -10/Materials | Discovered new exit (range 15) 1647 | -10/Materials | Repaired Lgt. Treads 2150 | -10/Materials | Entered Subcaves 2151 | -10/Subcaves | Continued accompanying wandering Federalists (5) 2216 | -10/Subcaves | Lost 4 allies 3024 | -10/Subcaves | A Subdweller sparked back to life 3068 | -10/Subcaves | Found Prototype Energy Cannon 4026 | -10/Subcaves | Discovered new exit (range 7) 4257 | -10/Subcaves | Build established: Subdweller-Mutant 4799 | -10/Subcaves | Learned Materials emergency access door positions 4861 | -10/Subcaves | A swath of the cavern ceiling suddenly collapsed 5314 | -10/Subcaves | Shifting Twisted Machinery released Mak. Light Armor Plating 5348 | -10/Subcaves | Shifting Twisted Machinery released Battle Cannon 5352 | -10/Subcaves | Learned location of Zion (-7) 5352 | -10/Subcaves | Met a Zionite searching for "candidates" 5597 | -10/Subcaves | Identified exit to Recycling 5747 | -10/Subcaves | Discovered new exit (range 14) 5830 | -10/Subcaves | Visited Clippyterm 5835 | -10/Subcaves | Learned location of Extension (-5) 5835 | -10/Subcaves | Learned Factory stockpile data 7273 | -10/Subcaves | Ambushed by Subdweller buried in earth 8516 | -10/Subcaves | Build established: Scavenger-Mutant 9009 | -10/Subcaves | Build established: Subdweller-Mutant 9014 | -10/Subcaves | Learned 4 Materials zone layouts 9106 | -10/Subcaves | Visited 4L-MR0's lab 9111 | -10/Subcaves | Identified Powered Cannon 9139 | -10/Subcaves | Found Rainbow Chip 9351 | -10/Subcaves | Shifting Twisted Machinery released Battle Rifle 9593 | -10/Subcaves | Crushed by falling debris 10265 | -10/Subcaves | Build established: Mutant 12063 | -10/Subcaves | Build established: Scavenger-Mutant 12291 | -10/Subcaves | Entered Recycling 13232 | -7/Recycling | Core integrity fell below 50% 13281 | -7/Recycling | Lost 3 parts (1p1n1w) 13292 | -7/Recycling | Build established: Mutant 14065 | -7/Recycling | Scanned before Scraplab entrance 14107 | -7/Recycling | Entered Scraplab 14138 | -7/Recycling | Discovered new exit (range 3) 14143 | -7/Recycling | Entered Scraptown 14143 | -7/Scraptown | System corruption cleaned by C-Scrubber 14551 | -7/Scraptown | Visited Awakened 14592 | -7/Scraptown | Visited Comm Corps 14673 | -7/Scraptown | Heard Great Nut preacher, LISTEN AND RECITE! 14697 | -7/Scraptown | Visited TADAMA 14762 | -7/Scraptown | Visited Cave Peace 14862 | -7/Scraptown | Visited Symbiants 14916 | -7/Scraptown | Visited Shadow of the Wyrm 14983 | -7/Scraptown | Visited Red Mages 15275 | -7/Scraptown | Scanned Subdweller tech in exchange for log data 15283 | -7/Scraptown | Learned Factory terminal intel 15286 | -7/Scraptown | Learned 8 Research zone layouts 15288 | -7/Scraptown | Learned Research trap positions 15321 | -7/Scraptown | Discovered new exit (range 13) 15990 | -7/Scraptown | Visited UFD Registry 15990 | -7/Scraptown | Registered with UFD as "Shortmech" 16093 | -7/Scraptown | Visited Cartography Club 16645 | -7/Scraptown | Visited Curators Association 16739 | -7/Scraptown | Visited Junk Repository 16838 | -7/Scraptown | Visited Modified Component R&D 16916 | -7/Scraptown | Visited Research Penetration Think Tank 16976 | -7/Scraptown | Visited Scrap Suit Storage 17113 | -7/Scraptown | Visited Junk Repository 17229 | -7/Scraptown | Delivered Scrap Shield to a Scientist 17377 | -7/Scraptown | Visited Science Guys 17507 | -7/Scraptown | Visited A0-MCA Data Center 17523 | -7/Scraptown | Given a C- rating by A0-MCA 17535 | -7/Scraptown | Found A0-MCA's Component Scanner 17712 | -7/Scraptown | Found Scrap Suit 18343 | -7/Scraptown | Attached Powered Cannon, gained temporary slot: Power 19105 | -7/Scraptown | Found Scrap Suit 19109 | -7/Scraptown | Found Scrap Suit 20185 | -7/Scraptown | Learned location of Proximity Caves (-3) 20185 | -7/Scraptown | Learned location of Quarantine (-2) 20185 | -7/Scraptown | Learned 8 Factory zone layouts 20185 | -7/Scraptown | Learned 20 Factory zone layouts 20185 | -7/Scraptown | Learned 4 Access zone layouts 20185 | -7/Scraptown | Learned 20 Lower Caves zone layouts 20185 | -7/Scraptown | Learned 12 Proximity Caves zone layouts 20185 | -7/Scraptown | Learned 16 Proximity Caves zone layouts 20185 | -7/Scraptown | Learned Research emergency access door positions 20185 | -7/Scraptown | Learned location of 2 exits from Factory 20185 | -7/Scraptown | Learned location of 1 exit from Proximity Caves 20185 | -7/Scraptown | Identified exit to Factory 20232 | -7/Scraptown | Found Deep Structural Scanner 20630 | -7/Scraptown | Met Optimus 20630 | -7/Scraptown | Accepted into 0bPrime 20707 | -7/Scraptown | Entered Factory 20707 | -5/Factory | Evolved 10 slots: Power x1, Propulsion x1, Utility x7, Weapon x1 20708 | -5/Factory | Identified exit to Factory 20708 | -5/Factory | Identified exit to Upper Caves 20709 | -5/Factory | Identified exit to Extension 20712 | -5/Factory | Loaded intel: 27 terminal locations 21004 | -5/Factory | Loaded intel: 8 recycling unit locations 21136 | -5/Factory | Learned location of Protoforge (-2) 21486 | -5/Factory | Build established: Skirmisher 21554 | -5/Factory | Sucked down chute 21554 | -5/Factory | Entered Waste 21555 | -5/Waste | Met a frightened Derelict 21573 | -5/Waste | Spotted C-40 Crusher 21627 | -5/Waste | Spotted C-40 Crusher 21632 | -5/Waste | Spotted C-40 Crusher 21634 | -5/Waste | Spotted C-40 Crusher 21661 | -5/Waste | Spotted C-40 Crusher 21683 | -5/Waste | Spotted C-40 Crusher 21733 | -5/Waste | Warlord forces began an assault 21752 | -5/Waste | Destroyed C-40 Crusher 21753 | -5/Waste | Allies destroyed C-40 Crusher 21759 | -5/Waste | Allies destroyed C-40 Crusher 21761 | -5/Waste | Allies destroyed C-40 Crusher 21780 | -5/Waste | Allies destroyed C-40 Crusher 21807 | -5/Waste | Allies destroyed C-40 Crusher 21976 | -5/Waste | Discovered new exit (range 16) 22168 | -5/Waste | Identified exit to Factory 22295 | -5/Waste | Entered Factory 22295 | -5/Factory | Accompanied by 14 allies 22355 | -5/Factory | Discovered exit to Factory (range 6) 22509 | -5/Factory | Lost 4 allies 22596 | -5/Factory | Loaded intel: 8 recycling unit locations 22632 | -5/Factory | Garrison activated, responded to threat 22665 | -5/Factory | Lost 4 allies 22895 | -5/Factory | First assault squad dispatched 22919 | -5/Factory | Entered Upper Caves 22920 | -5/Upper Caves | Identified exit to Upper Caves 22921 | -5/Upper Caves | UFD Scientist delivered a prototype 22923 | -5/Upper Caves | Found Prototype Protection 22923 | -5/Upper Caves | Identified Enh. Scrap Shield 23313 | -5/Upper Caves | Learned Factory stockpile data 23503 | -5/Upper Caves | Encountered a Warlord checkpoint 23595 | -5/Upper Caves | Attacked by a delusional Derelict stockpiling Unaware 23967 | -5/Upper Caves | Build established: Commander-Skirmisher 24079 | -5/Upper Caves | Entered another Upper Caves area 24079 | -5/Upper Caves | Accompanied by 4 allies 24190 | -5/Upper Caves | Found DCF Scrap (11 items) 24386 | -5/Upper Caves | Build established: Skirmisher 24856 | -5/Upper Caves | Discovered new exit (range 17) 24876 | -5/Upper Caves | Identified exit to Warlord 24961 | -5/Upper Caves | Entered Warlord 24961 | -5/Warlord | Accompanied by 2 allies 24962 | -5/Warlord | Identified exit to Proximity Caves 25007 | -5/Warlord | System corruption cleaned by Quarantine Array 25653 | -5/Warlord | Found Prototype Device 25653 | -5/Warlord | Identified Exp. Focal Shield 25666 | -5/Warlord | Found Prototype Device 25666 | -5/Warlord | Identified Exp. Phase Shifter 25670 | -5/Warlord | Attached Rainbow Chip, gained temporary slots: Power, Propulsion, Utility, Weapon 25672 | -5/Warlord | Found Prototype Reactor 25704 | -5/Warlord | Found Prototype Hackware 25730 | -5/Warlord | Build established: Commander-Skirmisher 25755 | -5/Warlord | Visited the Vortex Lab 25759 | -5/Warlord | Warlord's base attacked by MAIN.C 25764 | -5/Warlord | Found Prototype Energy Gun 25764 | -5/Warlord | Identified Vortex Shotgun 25773 | -5/Warlord | Found Vortex Shotgun 25780 | -5/Warlord | Found Vortex Shotgun 25881 | -5/Warlord | Rebuked by Warlord 26109 | -5/Warlord | Warlord forces counterattacked 26177 | -5/Warlord | Spotted Striker 26191 | -5/Warlord | P-70 Sage assimilated allied 8F-WSY(g) 26211 | -5/Warlord | Found Prototype Ballistic Cannon 26211 | -5/Warlord | Identified Hvy. Autocannon 26243 | -5/Warlord | Lost 10 allies 26350 | -5/Warlord | Entered Proximity Caves 26350 | -4/Proximity Caves | Accompanied by 3 allies 26357 | -4/Proximity Caves | Learned Research emergency access door positions 26371 | -4/Proximity Caves | Learned 4 Research zone layouts 26637 | -4/Proximity Caves | Build established: Skirmisher 26981 | -4/Proximity Caves | Entered Factory 26981 | -4/Factory | Accompanied by 3 allies 26981 | -4/Factory | Evolved 2 slots: Utility x2 26982 | -4/Factory | Identified System Mapper 27119 | -4/Factory | Found Quantum Capacitor 27268 | -4/Factory | Loaded intel: 8 recycling unit locations 27272 | -4/Factory | Build established: Hacker-Skirmisher 27283 | -4/Factory | Identified exit to Upper Caves 27741 | -4/Factory | Cargo convoy interrupted 27743 | -4/Factory | Spotted Executioner 27749 | -4/Factory | Spotted Executioner 27775 | -4/Factory | Destroyed Executioner 27798 | -4/Factory | Identified Vortex Chain Reactor 27802 | -4/Factory | Destroyed Executioner 27827 | -4/Factory | Core integrity fell below 50% 27847 | -4/Factory | Lost 14 parts (3p2n6u3w) 27854 | -4/Factory | Destroyed 11 combat bots 27990 | -4/Factory | Released all parts (13) 27999 | -4/Factory | Core integrity fell below 20% 28007 | -4/Factory | Destroyed by H-71 Marshal with Heavy Mass Driver Last Messages --------------- 27995_ U-05 Engineer builds a Wall. 27995_ Acquired Cesium-ion Thruster. 27995_ K-01 Serf collects debris. 27996_ U-05 Engineer lays Concrete. 27996_ K-01 Serf collects debris. 27997_ U-05 Engineer lays Concrete. 27997_ Penetrated by Slug. 27998_ K-01 Serf collects debris. 27998_ Slug penetrates Wall. 27998_ Cesium-ion Thruster destroyed. 27998_ Knocked back. 27999_ K-01 Serf collects debris. 27999_ U-05 Engineer lays Concrete. 28000_ U-05 Engineer builds a Wall. 28000_ U-05 Engineer lays Concrete. 28000_ K-01 Serf collects debris. 28000_ Penetrated by Slug. 28001_ U-05 Engineer builds a Door. 28002_ The unstable cave ceiling collapses. 28005_ U-05 Engineer lays Concrete. Map ----- +----------------------------------------------------+ | ?""""""" # ??????????????????????????? # ?? | | ? + ??????????????????????????? # ?? | | ?????????????????????????????????????????????????? | | ?????????????????????????????????????????????????? | | ?????????????????????????????????????????????????? | | ??????????????????????????????????????? ?????? | | ??????????????????????????????????????# ##???? | | ??????????????????????????????????? # ???? | | ??????????????????????????????????? " # ???? | | ??????????????????????????????????? " # ???? | | ??????????????????????????????????? " # ????? | | ??????????????????????????????????? " # ????? | | ??????????????????????????????????? " # %####?? | | ??????????]???????????????????????? " # ####?? | | ??????????????????????????????????? " # ###### | | ??????????????????????????????????? " # ###### | | ??????????????????????????????????? " # # ## # | | ?????????????????????????? ## # ## | | ?????????????????????????? ## # # | | ?????????????????????????? ## #^^^^ # | | ????????????#+#######+################# *%# | | ??????????? !# | | ??????????? % */ | | ?????????? % !#% | | ?????????? % ! | | ?????????? @ % %H %! | | ?????????????????###### T##########+######### %*%! | | ??????????????????????###?#### ** #######!" | | ??????????????????????????###" ** # =!=!! | | ??????????????????????????#### * # !!*% | | ?????????????????????????????# # %%%! | | ?????????????????????????????# "T" # =%%! | | ?????????????????????????????# """ ######+## | | ????????????????????????????? ## =#%%% | | ????????????????????????????################# #% | | ????????????????????????????????????????????# # | | ????????????????????????????????????????????# # % | | ????????????????????????????????????????????### | | ??????????????????????????????????????????????# | | ??????????????????????????????????????????????# | | ??????????????????????????????????????????????# | | ??????????????????????????????????????????????# | | ?????????????????????????????????????????????? ## | | ?????????????????????????????????????????????? ?? | | ?????????????????????????????????????????????????? | | ?????????????????????????????????????????????????? | | ?????????????????????????????????????????????????? | | ?????????????????????????????????????????????????? | | ?????????????????????????????????????????????????? | | ?????????????????????????????????????????????????? | +----------------------------------------------------+ Best States ------------- Heat Dissipation 89 Coolant Potential 80 Energy Generation 70 Energy Capacity 910 Matter Stores 300 Matter Capacity 300 Sight Range 16 Robot Scan Range 18 Terrain Scan Range 16 Terrain Scan Density 10 Base Temperature (-) 200 Armor Coverage 825 Propulsion Shielding 33 Evasion (%) 55 Recoil Reduction 2 Offensive Hacking 34 Item Schematics ----------------- None Robot Schematics ------------------ None Fabricated ------------ Nothing Repaired ---------- Lgt. Treads | 37% | -10/Materials Studied --------- Adv. Plasma Cannon | -5/Factory | Hacked Fission Core | -5/Factory | Hacked Alien Tech Used ----------------- None Achievements -------------- Art Critic Hulk Smash Loot Taster Challenges ------------ None Game ------ Seed PotentialZhirovJets Manual? 0 Play Time 03:05:38 Cumulative 397.2 hours Start 2025.10.26 @ 18:32:03 End 2025.10.26 @ 22:45:38 Sessions 1 Manual Loads 0 Difficulty Rogue Special Mode None Game No. 260 Rogue 260 Adventurer 0 Explorer 0 Win Type - Total 6 Types 4/0/1/0/0/0/0/1/0/0 Lore% 81 Gallery% 79 Achievement% 51 Wizard Run 0 Options --------- Layout 1 ASCII 0 Keyboard 0 Movement Numpad Keybinds 0 Fullscreen 1 Font 24/Smallcaps Map View 50x40 Zoom Use 0% Tactical HUD 1 Map Filters NONE Filters NONE Steam 1 RUN: 4656529e-3fc2-4392-a5c5-f62c8381d27d